fUSD/lending_fUSD_20240620
["ID","MTS","AMOUNT","RATE_DAILY","PERIOD"]
[329968253,1718880641748,-500.0,0.00013698,2]
[329968254,1718880641761,-808.18,0.00013698,2]
[329968255,1718880641771,-629.68,0.00013698,2]
[329968256,1718880641781,-500.0,0.00013698,2]
[329968257,1718880641791,-500.0,0.00013698,2]
[329968258,1718880641803,-500.0,0.00013698,2]
[329968259,1718880641813,-500.0,0.00013698,2]
[329968260,1718880641822,-500.0,0.00013698,2]
[329968261,1718880641832,-500.0,0.00013698,2]
[329968262,1718880641842,-619.46,0.00013698,2]
[329968263,1718880641852,-712.08,0.00013698,2]
[329968264,1718880641862,-500.0,0.00013698,2]
[329968265,1718880641871,-500.0,0.00013698,2]
[329968266,1718880641880,-500.0,0.00013698,2]
[329968267,1718880641890,-500.0,0.00013698,2]
[329968268,1718880641899,-500.0,0.00013698,2]
[329968269,1718880641909,-500.0,0.00013698,2]
[329968270,1718880641919,-500.0,0.00013698,2]
[329968271,1718880641928,-567.14,0.00013698,2]
[329968272,1718880641939,-500.0,0.00013698,2]
[329968273,1718880641949,-500.0,0.00013698,2]
[329968274,1718880641959,-500.0,0.00013698,2]
[329968275,1718880641969,-1161.11,0.00013698,2]
[329968276,1718880641978,-500.0,0.00013698,2]
[329968277,1718880641988,-500.0,0.00013698,2]
[329968278,1718880641997,-2750.61,0.00013698,2]
[329968279,1718880642006,-500.0,0.00013698,2]
[329968280,1718880642015,-620.54,0.00013698,2]
[329968281,1718880642032,-500.0,0.00013698,2]
[329968282,1718880642042,-500.0,0.00013698,2]
[329968283,1718880642051,-962.06,0.00013698,2]
[329968284,1718880642060,-500.0,0.00013698,2]
[329968285,1718880642071,-716.55,0.00013698,2]
[329968286,1718880642081,-3762.18,0.00013698,2]
[329968287,1718880642091,-500.0,0.00013698,2]
[329968288,1718880642102,-500.0,0.00013698,2]
[329968289,1718880642112,-500.0,0.00013698,2]
[329968290,1718880642123,-500.0,0.00013698,2]
[329968291,1718880642132,-1977.8,0.00013698,2]
[329968292,1718880642141,-1349.68,0.00013698,2]
[329968293,1718880642150,-500.0,0.00013698,2]
[329968294,1718880642160,-500.0,0.00013698,2]
[329968295,1718880642169,-590.51,0.00013698,2]
[329968296,1718880642179,-1803.01,0.00013698,2]
[329968297,1718880642189,-1226.43,0.00013698,2]
[329968298,1718880642198,-741.56,0.00013698,2]
[329968299,1718880642208,-791.45,0.00013698,2]
[329968300,1718880642218,-177.31576915,0.00013698,2]
[329968301,1718880642227,-500.0,0.00013698,2]
[329968302,1718880642237,-500.0,0.00013698,2]
[329968303,1718880642247,-500.0,0.00013698,2]
[329968304,1718880642256,-500.0,0.00013698,2]
[329968305,1718880642265,-730.53,0.00013698,2]
[329968306,1718880642275,-500.0,0.00013698,2]
[329968307,1718880642284,-546.22,0.00013698,2]
[329968308,1718880642294,-821.81,0.00013698,2]
[329968309,1718880642303,-2525.69,0.00013698,2]
[329968310,1718880642313,-500.0,0.00013698,2]
[329968311,1718880642322,-500.0,0.00013698,2]
[329968312,1718880642332,-500.0,0.00013698,2]
[329968313,1718880642341,-500.0,0.00013698,2]
[329968314,1718880642351,-500.0,0.00013698,2]
[329968315,1718880642360,-795.64,0.00013698,2]
[329968316,1718880642370,-500.0,0.00013698,2]
[329968317,1718880642379,-1092.05,0.00013698,2]
[329968318,1718880642389,-500.0,0.00013698,2]
[329968319,1718880642398,-500.0,0.00013698,2]
[329968320,1718880642408,-7655.32,0.00013698,2]
[329968321,1718880642418,-500.0,0.00013698,2]
[329968322,1718880642427,-500.0,0.00013698,2]
[329968323,1718880642436,-662.97,0.00013698,2]
[329968324,1718880642444,-500.0,0.00013698,2]
[329968325,1718880642454,-3916.39,0.00013698,2]
[329968326,1718880642463,-500.0,0.00013698,2]
[329968327,1718880642472,-17894.13,0.00013698,2]
[329968328,1718880642481,-1041.3,0.00013698,2]
[329968329,1718880642491,-500.0,0.00013698,2]
[329968330,1718880642500,-532.67,0.00013698,2]
[329968331,1718880642509,-1136.66,0.00013698,2]
[329968332,1718880642518,-500.0,0.00013698,2]
[329968333,1718880642528,-976.86,0.00013698,2]
[329968334,1718880642537,-7269.07,0.00013698,2]
[329968335,1718880642547,-500.0,0.00013698,2]
[329968336,1718880642557,-1360.74,0.00013698,2]
[329968337,1718880642567,-6672.78,0.00013698,2]
[329968338,1718880642576,-24475.75,0.00013698,2]
[329968339,1718880642586,-500.0,0.00013698,2]
[329968340,1718880642596,-2986.21,0.00013698,2]
[329968341,1718880642606,-500.0,0.00013698,2]
[329968342,1718880642616,-836.85,0.00013698,2]
[329968343,1718880642626,-1086.41,0.00013698,2]
[329968344,1718880642635,-1262.23,0.00013698,2]
[329968345,1718880642645,-2769.32,0.00013698,2]
[329968346,1718880642654,-500.0,0.00013698,2]
[329968347,1718880642663,-1518.4,0.00013698,2]
[329968348,1718880642673,-699.37,0.00013698,2]
[329968349,1718880642683,-1036.38,0.00013698,2]
[329968350,1718880642691,-500.0,0.00013698,2]
[329968351,1718880642700,-500.0,0.00013698,2]
[329968352,1718880642710,-828.36,0.00013698,2]
[329968353,1718880642719,-633.38,0.00013698,2]
[329968354,1718880642729,-500.0,0.00013698,2]
[329968355,1718880642739,-1394.57,0.00013698,2]
[329968356,1718880642748,-771.86,0.00013698,2]
[329968357,1718880642757,-1804.67,0.00013698,2]
[329968358,1718880642767,-1564.37,0.00013698,2]
[329968359,1718880642776,-500.0,0.00013698,2]
[329968360,1718880642786,-500.0,0.00013698,2]
[329968361,1718880642796,-580.49,0.00013698,2]
[329968362,1718880642806,-538.4,0.00013698,2]
[329968363,1718880642815,-528.75,0.00013698,2]
[329968364,1718880642825,-500.0,0.00013698,2]
[329968365,1718880642834,-500.0,0.00013698,2]
[329968366,1718880642844,-530.95,0.00013698,2]
[329968367,1718880642853,-10731.86,0.00013698,2]
[329968368,1718880642862,-6988.0,0.00013698,2]
[329968369,1718880642872,-1518.09,0.00013698,2]
[329968370,1718880642881,-500.0,0.00013698,2]
[329968371,1718880642891,-500.0,0.00013698,2]
[329968372,1718880642900,-682.5,0.00013698,2]
[329968373,1718880642909,-500.0,0.00013698,2]
[329968374,1718880642919,-6096.85,0.00013698,2]
[329968375,1718880642928,-1940.93,0.00013698,2]
[329968376,1718880642938,-758.77,0.00013698,2]
[329968377,1718880642948,-834.57,0.00013698,2]
[329968378,1718880642958,-4499.82,0.00013698,2]
[329968379,1718880642967,-2976.7,0.00013698,2]
[329968380,1718880642976,-500.0,0.00013698,2]
[329968381,1718880642986,-500.0,0.00013698,2]
[329968382,1718880642995,-500.0,0.00013698,2]
[329968383,1718880643005,-1046.2,0.00013698,2]
[329968384,1718880643014,-1046.74,0.00013698,2]
[329968385,1718880643030,-500.0,0.00013698,2]
[329968386,1718880643048,-691.94,0.00013698,2]
[329968387,1718880643058,-500.0,0.00013698,2]
[329968388,1718880643068,-2182.04,0.00013698,2]
[329968389,1718880643077,-1330.09,0.00013698,2]
[329968390,1718880643089,-500.0,0.00013698,2]
[329968391,1718880643099,-698.15,0.00013698,2]
[329968392,1718880643108,-632.28,0.00013698,2]
[329968393,1718880643118,-1392.17,0.00013698,2]
[329968394,1718880643128,-2881.72,0.00013698,2]
[329968395,1718880643137,-780.11,0.00013698,2]
[329968396,1718880643147,-941.35,0.00013698,2]
[329968397,1718880643156,-500.0,0.00013698,2]
[329968398,1718880643165,-500.0,0.00013698,2]
[329968399,1718880643175,-1022.23,0.00013698,2]
[329968400,1718880643184,-1194.95,0.00013698,2]
[329968401,1718880643194,-567.04,0.00013698,2]
[329968402,1718880643204,-500.0,0.00013698,2]
[329968403,1718880643214,-500.0,0.00013698,2]
[329968404,1718880643224,-1439.49,0.00013698,2]
[329968405,1718880643234,-12601.75,0.00013698,2]
[329968406,1718880643243,-838.59,0.00013698,2]
[329968407,1718880643253,-500.0,0.00013698,2]
[329968408,1718880643263,-665.58,0.00013698,2]
[329968410,1718880643272,-1240.66,0.00013698,2]
[329968411,1718880643282,-4981.82,0.00013698,2]
[329968413,1718880643291,-3764.8,0.00013698,2]
[329968414,1718880643301,-1641.84,0.00013698,2]
[329968415,1718880643310,-500.0,0.00013698,2]
[329968416,1718880643320,-500.0,0.00013698,2]
[329968417,1718880643330,-500.0,0.00013698,2]
[329968418,1718880643339,-500.0,0.00013698,2]
[329968419,1718880643349,-500.0,0.00013698,2]
[329968420,1718880643358,-980.53,0.00013698,2]
[329968421,1718880643368,-500.0,0.00013698,2]
[329968422,1718880643377,-3394.27,0.00013698,2]
[329968423,1718880643386,-2581.05,0.00013698,2]
[329968424,1718880643395,-500.0,0.00013698,2]
[329968425,1718880643405,-3932.35,0.00013698,2]
[329968426,1718880643415,-1626.64,0.00013698,2]
[329968427,1718880643424,-2412.07,0.00013698,2]
[329968428,1718880643434,-500.0,0.00013698,2]
[329968429,1718880643443,-4950.06,0.00013698,2]
[329968430,1718880643453,-2379.75,0.00013698,2]
[329968431,1718880643462,-616.2,0.00013698,2]
[329968432,1718880643472,-500.0,0.00013698,2]
[329968433,1718880643481,-500.0,0.00013698,2]
[329968434,1718880643491,-1168.25,0.00013698,2]
[329968435,1718880643500,-3011.32,0.00013698,2]
[329968436,1718880643509,-2484.77,0.00013698,2]
[329968437,1718880643519,-1557.4,0.00013698,2]
[329968438,1718880643528,-1263.59,0.00013698,2]
[329968441,1718880643538,-500.0,0.00013698,2]
[329968443,1718880643548,-500.0,0.00013698,2]
[329968445,1718880643557,-2023.09,0.00013698,2]
[329968447,1718880643567,-1720.14,0.00013698,2]
[329968450,1718880643577,-374.9635831,0.00013698,2]
[329968453,1718880643586,-500.0,0.00013698,2]
[329968456,1718880643595,-2649.12,0.00013698,2]
[329968459,1718880643604,-1234.79,0.00013698,2]
[329968461,1718880643614,-500.0,0.00013698,2]
[329968463,1718880643622,-500.0,0.00013698,2]
[329968465,1718880643631,-500.0,0.00013698,2]
[329968467,1718880643641,-500.0,0.00013698,2]
[329968469,1718880643650,-7997.22,0.00013698,2]
[329968471,1718880643659,-1908.05,0.00013698,2]
[329968473,1718880643669,-1555.71,0.00013698,2]
[329968475,1718880643679,-3834.94,0.00013698,2]
[329968477,1718880643688,-629.18,0.00013698,2]
[329968479,1718880643698,-500.0,0.00013698,2]
[329968480,1718880643707,-500.0,0.00013698,2]
[329968482,1718880643716,-583.69818634,0.00013698,2]
[329968484,1718880643726,-2088.24,0.00013698,2]
[329968486,1718880643736,-2578.68,0.00013698,2]
[329968488,1718880643745,-500.0,0.00013698,2]
[329968490,1718880643755,-10650.52,0.00013698,2]
[329968492,1718880643765,-2573.18,0.00013698,2]
[329968494,1718880643774,-500.0,0.00013698,2]
[329968496,1718880643783,-519.37,0.00013698,2]
[329968498,1718880643792,-500.0,0.00013698,2]
[329968500,1718880643802,-1512.23,0.00013698,2]
[329968502,1718880643811,-2172.36,0.00013698,2]
[329968504,1718880643820,-500.0,0.00013698,2]
[329968506,1718880643830,-500.0,0.00013698,2]
[329968508,1718880643839,-1537.65,0.00013698,2]
[329968510,1718880643849,-2852.21,0.00013698,2]
[329968511,1718880643858,-7016.09,0.00013698,2]
[329968513,1718880643868,-509.89,0.00013698,2]
[329968515,1718880643877,-2672.44,0.00013698,2]
[329968517,1718880643887,-2883.0,0.00013698,2]
[329968519,1718880643896,-2921.55,0.00013698,2]
[329968521,1718880643905,-1821.14,0.00013698,2]
[329968523,1718880643914,-803.46,0.00013698,2]
[329968525,1718880643923,-3632.35,0.00013698,2]
[329968527,1718880643933,-500.0,0.00013698,2]
[329968529,1718880643942,-500.0,0.00013698,2]
[329968531,1718880643952,-500.0,0.00013698,2]
[329968533,1718880643962,-626.98,0.00013698,2]
[329968535,1718880643971,-500.0,0.00013698,2]
[329968537,1718880643981,-951.09,0.00013698,2]
[329968539,1718880643991,-1714.86,0.00013698,2]
[329968541,1718880644000,-2446.79,0.00013698,2]
[329968543,1718880644010,-1318.03,0.00013698,2]
[329968545,1718880644020,-530.22,0.00013698,2]
[329968547,1718880644035,-500.0,0.00013698,2]
[329968549,1718880644045,-500.0,0.00013698,2]
[329968551,1718880644055,-463.98730762,0.00013698,2]
[329968552,1718880644066,-1108.69,0.00013698,2]
[329968554,1718880644075,-500.0,0.00013698,2]
[329968556,1718880644085,-1630.31,0.00013698,2]
[329968558,1718880644094,-500.0,0.00013698,2]
[329968560,1718880644104,-837.04,0.00013698,2]
[329968561,1718880644114,-1928.45,0.00013698,2]
[329968563,1718880644124,-599.56,0.00013698,2]
[329968565,1718880644134,-3646.44,0.00013698,2]
[329968567,1718880644143,-538.51,0.00013698,2]
[329968569,1718880644152,-1321.41,0.00013698,2]
[329968571,1718880644163,-508.33,0.00013698,2]
[329968573,1718880644173,-500.0,0.00013698,2]
[329968575,1718880644183,-500.0,0.00013698,2]
[329968577,1718880644192,-4406.23,0.00013698,2]
[329968579,1718880644202,-3217.25,0.00013698,2]
[329968581,1718880644211,-500.0,0.00013698,2]
[329968582,1718880644221,-478.02,0.00013699,2]
[329968583,1718880644231,-340.98,0.00013699,2]
[329968584,1718880644240,-1094.9391673,0.0001372,2]
[329968585,1718880644249,-173.63595363,0.00013749,2]
[329968586,1718880644259,-1933.73936278,0.00013755,2]
[329968587,1718880644269,-382.84586015,0.00013785,2]
[329968588,1718880644278,-1594.94860419,0.0001379,2]
[329968590,1718880644288,-1594.94860417,0.0001379,2]
[329968592,1718880644297,-1300.22397258,0.00013799,2]
[329968594,1718880644307,-1300.22397254,0.00013799,2]
[329968595,1718880644317,-500.0,0.00013831,2]
[329968596,1718880644326,-1933.73936278,0.00013833,2]
[329968597,1718880644336,-500.0,0.0001384,2]
[329968598,1718880644346,-197.81765627,0.00013872,2]
[329968599,1718880644355,-174.49944535,0.00013872,2]
[329968600,1718880644365,-158.54784222,0.00013877,2]
[329968601,1718880644375,-200.0,0.00013878,2]
[329968602,1718880644384,-1000.0,0.00013878,2]
[329968603,1718880644395,-200.0,0.00013878,2]
[329968604,1718880644620,-1594.94860417,0.00013887,2]
[329968605,1718880644630,-1300.22397254,0.00013887,2]
[329968606,1718880644640,-486.81337377,0.000139,2]
[329968607,1718880644650,-166.33848881,0.000139,2]
[329968608,1718880644660,-9518.0246987,0.000139,2]
[329968609,1718880644670,-173.63595363,0.000139,2]
[329968610,1718880644679,-1735.274957,0.000139,2]
[329968611,1718880644689,-500.0,0.0001391,2]
[329968612,1718880644699,-1933.73936278,0.00013911,2]
[329968613,1718880644708,-500.0,0.00013919,2]
[329968614,1718880644717,-500.0,0.00013928,2]
[329968615,1718880644728,-500.0,0.00013937,2]
[329968616,1718880644737,-500.0,0.00013946,2]
[329968617,1718880644747,-500.0,0.00013954,2]
[329968618,1718880644756,-413.92057913,0.00013962,2]
[329968619,1718880644766,-500.0,0.00013963,2]
[329968620,1718880644776,-500.0,0.00013972,2]
[329968621,1718880644786,-500.0,0.00013972,2]
[329968622,1718880644795,-500.0,0.00013972,2]
[329968623,1718880644805,-500.0,0.00013972,2]
[329968624,1718880644814,-500.0,0.00013972,2]
[329968625,1718880644824,-500.0,0.00013972,2]
[329968626,1718880644833,-500.0,0.00013972,2]
[329968627,1718880644843,-500.0,0.00013972,2]
[329968628,1718880644853,-500.0,0.00013972,2]
[329968629,1718880644863,-500.0,0.00013972,2]
[329968630,1718880644872,-500.0,0.00013972,2]
[329968631,1718880644881,-500.0,0.00013972,2]
[329968632,1718880644891,-500.0,0.00013972,2]
[329968633,1718880644901,-500.0,0.00013972,2]
[329968634,1718880644910,-357.07074224,0.00013972,2]
[329968635,1718880644920,-500.0,0.00013972,2]
[329968636,1718880644929,-500.0,0.00013972,2]
[329968637,1718880644939,-500.0,0.00013972,2]
[329968638,1718880644949,-500.0,0.00013972,2]
[329968639,1718880644959,-500.0,0.00013972,2]
[329968640,1718880644968,-428.46910171,0.00013972,2]
[329968641,1718880644978,-500.0,0.00013972,2]
[329968642,1718880644988,-500.0,0.00013972,2]
[329968643,1718880644998,-500.0,0.00013972,2]
[329968644,1718880645007,-500.0,0.00013972,2]
[329968645,1718880645018,-500.0,0.00013972,2]
[329968646,1718880645031,-500.0,0.00013972,2]
[329968647,1718880645045,-500.0,0.00013972,2]
[329968648,1718880645055,-500.0,0.00013972,2]
[329968649,1718880645065,-500.0,0.00013972,2]
[329968650,1718880645076,-359.65848385,0.00013972,2]
[329968651,1718880645085,-500.0,0.00013972,2]
[329968652,1718880645095,-500.0,0.00013972,2]
[329968654,1718880645105,-500.0,0.00013972,2]
[329968656,1718880645115,-500.0,0.00013972,2]
[329968658,1718880645125,-893.77,0.00013972,2]
[329968660,1718880645134,-500.0,0.00013972,2]
[329968662,1718880645143,-649.27,0.00013972,2]
[329968664,1718880645153,-500.0,0.00013972,2]
[329968666,1718880645163,-500.0,0.00013972,2]
[329968667,1718880645172,-500.0,0.00013972,2]
[329968669,1718880645184,-500.0,0.00013972,2]
[329968671,1718880645194,-1828.99,0.00013972,2]
[329968672,1718880645204,-500.0,0.00013972,2]
[329968673,1718880645213,-500.0,0.00013972,2]
[329968674,1718880645223,-500.0,0.00013972,2]
[329968675,1718880645232,-500.0,0.00013972,2]
[329968676,1718880645242,-500.0,0.00013972,2]
[329968677,1718880645252,-500.0,0.00013972,2]
[329968678,1718880645262,-500.0,0.00013972,2]
[329968679,1718880645272,-500.0,0.00013972,2]
[329968680,1718880645282,-592.21,0.00013972,2]
[329968681,1718880645292,-500.0,0.00013972,2]
[329968682,1718880645301,-500.0,0.00013972,2]
[329968683,1718880645311,-500.0,0.00013972,2]
[329968684,1718880645320,-500.0,0.00013972,2]
[329968685,1718880645330,-500.0,0.00013972,2]
[329968686,1718880645340,-500.0,0.00013972,2]
[329968687,1718880645350,-616.96,0.00013972,2]
[329968688,1718880645360,-500.0,0.00013972,2]
[329968689,1718880645369,-500.0,0.00013972,2]
[329968690,1718880645379,-500.0,0.00013972,2]
[329968691,1718880645388,-500.0,0.00013972,2]
[329968692,1718880645398,-500.0,0.00013972,2]
[329968694,1718880645407,-500.0,0.00013972,2]
[329968696,1718880645416,-500.0,0.00013972,2]
[329968698,1718880645425,-514.66,0.00013972,2]
[329968700,1718880645434,-500.0,0.00013972,2]
[329968701,1718880645444,-500.0,0.00013972,2]
[329968702,1718880645455,-500.0,0.00013972,2]
[329968703,1718880645465,-500.0,0.00013972,2]
[329968704,1718880645481,-500.0,0.00013972,2]
[329968705,1718880645490,-500.0,0.00013972,2]
[329968706,1718880645500,-573.35,0.00013972,2]
[329968707,1718880645510,-500.0,0.00013972,2]
[329968708,1718880645519,-500.0,0.00013972,2]
[329968709,1718880645529,-597.07,0.00013972,2]
[329968710,1718880645538,-500.0,0.00013972,2]
[329968711,1718880645547,-294.6,0.00013972,2]
[329968712,1718880645556,-500.0,0.00013972,2]
[329968713,1718880645566,-500.0,0.00013972,2]
[329968714,1718880645575,-500.0,0.00013972,2]
[329968715,1718880645584,-500.0,0.00013972,2]
[329968716,1718880645594,-500.0,0.00013972,2]
[329968717,1718880645603,-500.0,0.00013972,2]
[329968718,1718880645612,-500.0,0.00013972,2]
[329968719,1718880645622,-500.0,0.00013972,2]
[329968720,1718880645631,-500.0,0.00013972,2]
[329968721,1718880645640,-500.0,0.00013972,2]
[329968722,1718880645649,-500.0,0.00013972,2]
[329968723,1718880645659,-500.0,0.00013972,2]
[329968724,1718880645668,-500.0,0.00013972,2]
[329968725,1718880645678,-689.29,0.00013972,2]
[329968726,1718880645688,-500.0,0.00013972,2]
[329968727,1718880645698,-611.78,0.00013972,2]
[329968728,1718880645707,-500.0,0.00013972,2]
[329968729,1718880645717,-500.0,0.00013972,2]
[329968730,1718880645727,-500.0,0.00013972,2]
[329968731,1718880645736,-500.0,0.00013972,2]
[329968732,1718880645746,-500.0,0.00013972,2]
[329968733,1718880645756,-500.0,0.00013972,2]
[329968734,1718880645765,-500.0,0.00013972,2]
[329968735,1718880645775,-630.98,0.00013972,2]
[329968736,1718880645784,-500.0,0.00013972,2]
[329968737,1718880645794,-500.0,0.00013972,2]
[329968738,1718880645804,-500.0,0.00013972,2]
[329968739,1718880645813,-500.0,0.00013972,2]
[329968740,1718880645823,-500.0,0.00013972,2]
[329968741,1718880645832,-500.0,0.00013972,2]
[329968742,1718880645842,-500.0,0.00013972,2]
[329968743,1718880645852,-500.0,0.00013972,2]
[329968744,1718880645862,-511.37,0.00013972,2]
[329968745,1718880645872,-500.0,0.00013972,2]
[329968746,1718880645883,-151.0,0.00013972,2]
[329968747,1718880645892,-500.0,0.00013972,2]
[329968748,1718880645903,-154.63,0.00013972,2]
[329968749,1718880645912,-500.0,0.00013972,2]
[329968750,1718880645922,-500.0,0.00013972,2]
[329968751,1718880645932,-500.0,0.00013972,2]
[329968752,1718880645942,-500.0,0.00013972,2]
[329968753,1718880645951,-500.0,0.00013972,2]
[329968754,1718880645961,-500.0,0.00013972,2]
[329968755,1718880645970,-6764.25,0.00013972,2]
[329968756,1718880645980,-500.0,0.00013972,2]
[329968757,1718880645989,-500.0,0.00013972,2]
[329968758,1718880645999,-151.0,0.00013972,2]
[329968759,1718880646008,-151.0,0.00013972,2]
[329968760,1718880646019,-500.0,0.00013972,2]
[329968761,1718880646032,-500.0,0.00013972,2]
[329968762,1718880646043,-500.0,0.00013972,2]
[329968763,1718880646053,-500.0,0.00013972,2]
[329968764,1718880646063,-500.0,0.00013972,2]
[329968765,1718880646074,-544.18,0.00013972,2]
[329968766,1718880646084,-500.0,0.00013972,2]
[329968767,1718880646094,-659.65,0.00013972,2]
[329968768,1718880646104,-500.0,0.00013972,2]
[329968769,1718880646116,-500.0,0.00013972,2]
[329968770,1718880646126,-808.18,0.00013972,2]
[329968771,1718880646136,-152.157222,0.00013972,2]
[329968772,1718880646146,-629.68,0.00013972,2]
[329968773,1718880646156,-500.0,0.00013972,2]
[329968774,1718880646166,-500.0,0.00013972,2]
[329968775,1718880646175,-500.0,0.00013972,2]
[329968776,1718880646185,-500.0,0.00013972,2]
[329968777,1718880646195,-500.0,0.00013972,2]
[329968778,1718880646206,-500.0,0.00013972,2]
[329968779,1718880646215,-619.46,0.00013972,2]
[329968780,1718880646225,-712.08,0.00013972,2]
[329968781,1718880646234,-500.0,0.00013972,2]
[329968782,1718880646244,-500.0,0.00013972,2]
[329968783,1718880646253,-336.08724346,0.00013972,2]
[329968784,1718880646263,-500.0,0.00013972,2]
[329968785,1718880646273,-500.0,0.00013972,2]
[329968786,1718880646282,-500.0,0.00013972,2]
[329968787,1718880646292,-500.0,0.00013972,2]
[329968788,1718880646302,-567.14,0.00013972,2]
[329968789,1718880646312,-500.0,0.00013972,2]
[329968790,1718880646322,-500.0,0.00013972,2]
[329968791,1718880646332,-500.0,0.00013972,2]
[329968792,1718880646341,-1161.11,0.00013972,2]
[329968793,1718880646351,-500.0,0.00013972,2]
[329968794,1718880646361,-500.0,0.00013972,2]
[329968795,1718880646371,-151.0,0.00013972,2]
[329968796,1718880646380,-2750.61,0.00013972,2]
[329968797,1718880646389,-500.0,0.00013972,2]
[329968798,1718880646399,-620.54,0.00013972,2]
[329968799,1718880646408,-500.0,0.00013972,2]
[329968800,1718880646417,-500.0,0.00013972,2]
[329968801,1718880646427,-962.06,0.00013972,2]
[329968802,1718880646436,-500.0,0.00013972,2]
[329968803,1718880646445,-716.55,0.00013972,2]
[329968804,1718880646454,-3762.18,0.00013972,2]
[329968805,1718880646463,-500.0,0.00013972,2]
[329968806,1718880646472,-500.0,0.00013972,2]
[329968807,1718880646481,-500.0,0.00013972,2]
[329968808,1718880646491,-500.0,0.00013972,2]
[329968810,1718880646500,-1977.8,0.00013972,2]
[329968812,1718880646508,-1349.68,0.00013972,2]
[329968814,1718880646517,-291.638693,0.00013972,2]
[329968816,1718880646527,-500.0,0.00013972,2]
[329968817,1718880646536,-500.0,0.00013972,2]
[329968819,1718880646546,-590.51,0.00013972,2]
[329968821,1718880646555,-1803.01,0.00013972,2]
[329968823,1718880646565,-1226.43,0.00013972,2]
[329968825,1718880646574,-741.56,0.00013972,2]
[329968827,1718880646584,-791.45,0.00013972,2]
[329968829,1718880646593,-500.0,0.00013972,2]
[329968831,1718880646603,-500.0,0.00013972,2]
[329968833,1718880646612,-500.0,0.00013972,2]
[329968835,1718880646622,-500.0,0.00013972,2]
[329968837,1718880646631,-730.53,0.00013972,2]
[329968839,1718880646640,-500.0,0.00013972,2]
[329968841,1718880646650,-546.22,0.00013972,2]
[329968843,1718880646660,-821.81,0.00013972,2]
[329968845,1718880646669,-2525.69,0.00013972,2]
[329968847,1718880646679,-500.0,0.00013972,2]
[329968849,1718880646688,-500.0,0.00013972,2]
[329968851,1718880646698,-500.0,0.00013972,2]
[329968853,1718880646707,-419.01532129,0.00013972,2]
[329968855,1718880646717,-500.0,0.00013972,2]
[329968857,1718880646726,-795.64,0.00013972,2]
[329968859,1718880646736,-500.0,0.00013972,2]
[329968861,1718880646745,-1092.05,0.00013972,2]
[329968863,1718880646754,-500.0,0.00013972,2]
[329968864,1718880646764,-500.0,0.00013972,2]
[329968865,1718880646774,-7655.32,0.00013972,2]
[329968866,1718880646783,-500.0,0.00013972,2]
[329968867,1718880646792,-500.0,0.00013972,2]
[329968868,1718880646802,-662.97,0.00013972,2]
[329968869,1718880646811,-500.0,0.00013972,2]